bitfinex/quotes_ETHUSD_20240711
["timestamp","ask_amount","ask_price","bid_price","bid_amount"]
[1720674516993,1.35262703,3099.3,3099.2,0.789]
[1720674519286,1.6906173,3099.4,3099.2,0.789]
[1720674520519,1.85967903,3099.4,3099.2,0.789]
[1720674521023,0.16906173,3099.4,3099.2,0.789]
[1720674521177,1.69037387,3099.4,3099.2,0.789]
[1720674522319,1.69037387,3099.3,3099.2,0.789]
[1720674522695,1.69037387,3099.4,3099.2,0.789]
[1720674523110,1.69037387,3099.3,3099.2,0.789]
[1720674523925,4.15047387,3099.3,3098.3,9.6777]
[1720674524225,1.69058407,3099.0,3098.9,0.789]
[1720674524392,0.16903739,3099.2,3098.9,0.789]
[1720674524725,0.26291374,3099.1,3098.9,0.789]
[1720674525781,2.2918054,3099.1,3098.7,0.789]
[1720674525981,1.69101768,3098.8,3098.3,9.6777]
[1720674526194,1.35281568,3098.7,3098.3,9.6777]
[1720674526400,1.69101768,3098.8,3098.3,9.6777]
[1720674526401,1.69101768,3098.8,3098.6,0.789]
[1720674526837,1.86024322,3098.8,3098.6,0.789]
[1720674527120,1.86024322,3098.8,3098.5,0.789]
[1720674527121,2.42690177,3098.8,3098.5,0.789]
[1720674527321,1.6912672,3098.6,3098.5,0.789]
[1720674527700,2.42690177,3098.8,3098.5,0.789]
[1720674527903,1.69135205,3098.6,3098.5,0.789]
[1720674528226,1.69158529,3098.6,3098.5,0.789]
[1720674531128,0.24269018,3098.7,3098.5,0.789]
[1720674531434,1.69290804,3098.7,3098.5,0.789]
[1720674531607,2.52811374,3099.1,3098.5,0.789]
[1720674531608,1.69290804,3098.6,3098.5,0.789]
[1720674532903,2.03148965,3098.9,3098.5,0.789]
[1720674533138,3.02152266,3098.8,3098.6,0.789]
[1720674533440,3.32367493,3098.7,3098.6,0.789]
[1720674534534,0.30215227,3098.7,3098.6,0.789]
[1720674534736,2.0318634,3098.7,3098.6,0.789]
[1720674534936,3.02198008,3098.7,3098.6,0.789]
[1720674536409,0.99011668,3098.7,3098.6,0.789]
[1720674536841,0.99011668,3098.8,3098.6,0.789]
[1720674537206,0.33814382,3098.7,3098.6,0.789]
[1720674537413,1.69813728,3098.7,3098.6,0.789]
[1720674538120,1.69818936,3098.7,3098.6,0.789]
[1720674538316,1.32831258,3098.7,3098.6,0.789]
[1720674539437,3.36043441,3098.7,3098.6,0.789]
[1720674539733,1.32831258,3098.7,3098.6,0.789]
[1720674540309,3.36043441,3098.7,3098.6,0.789]
[1720674540513,1.32831258,3098.7,3098.6,0.789]
[1720674540710,3.36043441,3098.7,3098.6,0.789]
[1720674540958,3.36047583,3098.7,3098.6,0.789]
[1720674541162,1.32822294,3098.7,3098.6,0.789]
[1720674544035,1.32822294,3098.7,3098.2,2.2874]
[1720674544258,1.35510379,3098.3,3098.2,2.2874]
[1720674544499,1.35510379,3098.3,3098.2,3.0764]
[1720674545404,1.35510379,3098.3,3098.2,3.38404]
[1720674545609,1.32822294,3098.7,3098.3,2.4943]
[1720674545889,1.32822294,3098.7,3098.6,3.1897]
[1720674546061,1.32822294,3098.7,3098.6,3.7397]
[1720674546393,1.32822294,3098.7,3098.6,3.56367]
[1720674547050,1.32822294,3098.7,3098.6,2.4007]
[1720674547253,1.32822294,3098.7,3098.6,3.1897]
[1720674547764,3.02205814,3098.7,3098.6,3.1897]
[1720674550000,1.32822294,3098.7,3098.6,3.1897]
[1720674550167,3.02226671,3098.7,3098.6,3.1897]
[1720674550894,3.0223448,3098.7,3098.6,3.1897]
[1720674551190,2.03226568,3098.7,3098.6,3.1897]
[1720674551552,0.33814382,3098.7,3098.6,3.1897]
[1720674551757,2.03226568,3098.7,3098.6,3.1897]
[1720674552165,0.33814382,3098.7,3098.3,2.4109]
[1720674552392,0.33814382,3098.7,3098.6,0.789]
[1720674553556,0.57525282,3098.7,3098.6,0.789]
[1720674553751,2.60819905,3098.7,3098.6,0.789]
[1720674553987,2.60845091,3098.7,3098.6,0.789]
[1720674557257,0.57525282,3098.7,3098.6,0.789]
[1720674557498,2.3710872,3098.7,3098.6,0.789]
[1720674559563,0.33814382,3098.7,3098.6,0.789]
[1720674561904,2.37155034,3098.7,3098.6,0.789]
[1720674563290,2.37172322,3098.7,3098.6,0.789]
[1720674563494,0.33814382,3098.7,3098.6,0.789]
[1720674567087,2.37278843,3098.8,3098.6,0.789]
[1720674567290,2.61006727,3098.8,3098.6,0.789]
[1720674567702,0.23727884,3098.8,3098.6,0.789]
[1720674568027,2.61129594,3098.8,3098.6,0.789]
[1720674571211,2.6120658,3098.8,3098.6,0.789]
[1720674572750,2.37478696,3098.7,3098.6,0.789]
[1720674573247,0.26120658,3098.7,3098.3,0.789]
[1720674573464,2.37499961,3098.6,3098.3,0.789]
[1720674573614,2.37499961,3098.5,3098.3,0.789]
[1720674574427,2.3749361,3098.4,3097.9,2.3201]
[1720674574658,2.3749361,3098.4,3098.2,0.789]
[1720674574953,2.3749361,3098.4,3097.9,2.3201]
[1720674575149,2.03569471,3098.1,3097.9,2.3201]
[1720674575352,2.03569471,3098.1,3098.0,0.789]
[1720674577057,2.3749361,3098.3,3098.0,0.789]
[1720674577253,2.0349881,3098.1,3098.0,0.789]
[1720674577785,0.33818196,3098.2,3098.0,0.789]
[1720674577962,2.03496059,3098.1,3098.0,0.789]
[1720674578144,2.03473574,3098.1,3098.0,0.789]
[1720674578346,0.33818196,3098.2,3098.0,0.789]
[1720674579084,2.983533,3098.2,3097.4,9.8085]
[1720674579375,2.03446066,3097.8,3097.6,0.789]
[1720674579589,2.37412077,3098.1,3097.6,0.789]
[1720674579590,2.03446066,3097.7,3097.6,0.789]
[1720674581203,2.03381323,3097.7,3097.6,0.789]
[1720674582675,2.03381323,3097.8,3097.6,0.789]
[1720674583917,2.03381323,3097.8,3097.4,7.4]
[1720674584119,2.03381323,3097.6,3097.4,7.4]
[1720674584474,0.29852533,3097.8,3097.1,0.789]
[1720674584683,2.03162552,3097.4,3097.1,0.789]
[1720674585178,1.69246353,3097.2,3097.1,0.789]
[1720674585812,1.69226506,3097.3,3097.1,0.789]
[1720674586028,1.35383072,3097.2,3097.1,0.789]
[1720674586299,1.69226506,3097.3,3097.1,0.789]
[1720674586522,1.69226506,3097.2,3097.1,0.789]
[1720674587027,1.69226506,3097.3,3097.1,0.789]
[1720674587210,1.69226506,3097.4,3097.2,0.789]
[1720674587417,1.69226506,3097.4,3097.3,2.2619]
[1720674587625,2.03162552,3097.7,3097.3,2.56699]
[1720674587626,1.35310261,3097.6,3097.3,2.56699]
[1720674587933,1.35299151,3097.7,3097.5,0.789]
[1720674588135,1.35299151,3097.8,3097.6,2.4421]
[1720674588422,1.35282076,3097.9,3097.8,0.789]
[1720674589828,1.35282076,3098.0,3097.8,0.789]
[1720674590029,1.35282076,3098.0,3097.9,0.789]
[1720674590194,1.35282076,3098.1,3097.9,0.789]
[1720674590393,1.35282076,3098.0,3097.6,2.4421]
[1720674590620,1.35282076,3098.0,3097.9,0.789]
[1720674590991,1.35282076,3098.1,3097.9,0.789]
[1720674591326,1.35282076,3098.1,3098.0,0.789]
[1720674592113,3.0,3098.7,3098.0,3.1043]
[1720674592114,1.35282076,3098.3,3098.0,3.1043]
[1720674592317,1.35282076,3098.3,3098.2,0.789]
[1720674592737,1.35282076,3098.4,3098.2,0.789]
[1720674593033,1.35282076,3098.4,3098.3,0.789]
[1720674595331,1.35282076,3098.5,3098.3,0.789]
[1720674595546,1.35282076,3098.6,3098.4,2.2844]
[1720674595717,1.35282076,3098.6,3098.5,0.789]
[1720674596106,1.35282076,3098.7,3098.5,0.789]
[1720674596918,1.35282076,3098.6,3098.5,0.789]
[1720674597831,5.3877,3099.1,3098.4,3.0734]
[1720674598032,1.35335214,3098.5,3098.4,3.0734]
[1720674598408,1.35335214,3098.5,3098.2,0.789]
[1720674598647,1.35335214,3098.4,3098.2,0.789]
[1720674603010,1.69187592,3098.6,3098.2,0.789]
[1720674603011,1.35335214,3098.5,3098.3,2.3051]
[1720674603174,1.35335214,3098.5,3098.4,0.789]
[1720674606120,1.69181555,3098.6,3098.4,0.789]
[1720674606420,1.69181555,3098.6,3098.3,2.3051]
[1720674606621,1.35347143,3098.4,3098.2,0.789]
[1720674607403,1.35347143,3098.4,3098.2,1.11306]
[1720674608317,1.35347143,3098.5,3098.2,1.11306]
[1720674608629,1.35347143,3098.5,3098.4,0.789]
[1720674608925,1.35347143,3098.6,3098.4,0.789]
[1720674610601,1.35347143,3098.7,3098.4,0.789]
[1720674610805,1.35347143,3098.7,3098.6,0.789]
[1720674611128,1.35347143,3098.8,3098.6,0.789]
[1720674611905,1.35347143,3098.9,3098.6,0.789]
[1720674613629,1.35347143,3098.8,3098.6,0.789]
[1720674614206,1.35347143,3098.9,3098.6,0.789]
[1720674614407,1.35347143,3098.8,3098.6,0.789]
[1720674616111,1.35347143,3098.9,3098.6,0.789]
[1720674616817,1.35347143,3098.9,3098.7,2.4016]
[1720674617007,1.35347143,3098.9,3098.8,0.789]
[1720674617621,1.35347143,3099.0,3098.8,0.789]
[1720674618709,1.35347143,3099.1,3098.8,0.789]
[1720674619844,2.02872014,3099.6,3099.0,0.789]
[1720674619845,1.35347143,3099.5,3099.0,0.789]
[1720674620164,1.35183595,3099.5,3099.4,0.789]
[1720674620717,1.35183595,3099.5,3099.2,0.789]
[1720674623764,1.35183595,3099.5,3098.8,3.0893]
[1720674623765,1.35183595,3099.4,3098.8,3.0893]
[1720674623928,1.35183595,3099.3,3098.8,3.0893]
[1720674624662,1.3509386,3099.2,3098.8,3.0893]
[1720674625272,1.3509386,3099.3,3098.8,3.0893]
[1720674625477,2.00405475,3099.5,3099.0,0.789]
[1720674625478,1.3509386,3099.4,3099.0,0.789]
[1720674625638,1.3509386,3099.3,3099.0,0.789]
[1720674627538,1.3509386,3099.2,3099.0,0.789]
[1720674628034,0.31538149,3099.5,3099.0,0.789]
[1720674628035,1.3509386,3099.3,3099.0,0.789]
[1720674629964,1.3509386,3099.2,3099.0,0.789]
[1720674630180,1.3509386,3099.3,3099.0,0.789]
[1720674631231,1.3509386,3099.2,3099.0,0.789]
[1720674632303,1.3509386,3099.2,3098.6,0.789]
[1720674632304,0.98994846,3099.1,3098.6,0.789]
[1720674632591,1.35329707,3098.8,3098.6,0.789]
[1720674633503,1.35405802,3098.7,3098.6,0.789]
[1720674633988,1.69162134,3098.8,3098.6,0.789]
[1720674634360,1.69162134,3098.7,3098.6,0.789]
[1720674634567,1.69162134,3098.7,3098.4,0.789]
[1720674634901,1.69310311,3098.5,3098.4,0.789]
[1720674635187,2.02767895,3098.7,3098.2,0.789]
[1720674635387,1.35479,3098.3,3098.2,0.789]
[1720674635593,1.6934875,3098.4,3098.1,2.4294]
[1720674635792,1.35480313,3098.3,3098.2,0.789]
[1720674636278,1.6934875,3098.4,3098.2,0.789]
[1720674636600,1.35500518,3098.3,3098.2,0.789]
[1720674636757,1.35500518,3098.3,3098.2,1.11084]
[1720674636958,1.35500518,3098.4,3098.2,3.60204]
[1720674637267,1.35500518,3098.5,3098.3,2.4912]
[1720674637473,1.6934875,3098.7,3098.5,0.789]
[1720674637659,1.69389246,3098.6,3098.5,0.789]
[1720674638767,1.3552539,3098.6,3098.5,3.2802]
[1720674638975,1.69335793,3098.7,3098.5,3.60822]
[1720674639492,1.69335793,3098.7,3098.6,2.4912]
[1720674640466,0.33810403,3098.7,3098.6,2.4912]
[1720674641218,2.03233372,3098.7,3098.6,2.4912]
[1720674641859,0.33810403,3098.7,3098.6,2.4912]
[1720674642093,2.03233372,3098.7,3098.6,2.852022]
[1720674642408,0.33810403,3098.7,3098.5,0.789]
[1720674642699,2.03252422,3098.7,3098.5,0.789]
[1720674643887,1.69442019,3098.6,3098.5,0.789]
[1720674644203,2.03252422,3098.7,3098.5,0.789]
[1720674644384,2.03256593,3098.7,3098.5,0.789]
[1720674644563,1.6944619,3098.6,3098.5,0.789]
[1720674646581,0.33810403,3098.7,3098.5,0.789]
[1720674652199,0.33810403,3098.7,3098.4,0.789]
[1720674652200,2.37225394,3098.7,3098.4,0.789]
[1720674653076,2.03414991,3098.6,3098.2,0.789]
[1720674653408,0.77874434,3098.7,3098.2,0.789]
[1720674653409,2.03414991,3098.5,3098.2,0.789]
[1720674654003,2.03414991,3098.4,3098.2,0.789]
[1720674654300,2.03414991,3098.5,3098.2,0.789]
[1720674654665,2.03425608,3098.5,3098.2,0.789]
[1720674656922,2.03425608,3098.5,3098.1,2.3753]
[1720674657208,2.03425608,3098.4,3098.0,0.789]
[1720674657403,2.03425608,3098.3,3098.0,0.789]
[1720674657869,2.37241508,3098.2,3098.0,0.789]
[1720674658064,2.37241508,3098.2,3097.9,9.7753]
[1720674658409,2.3720041,3098.2,3097.8,0.789]
[1720674658583,1.69452025,3097.9,3097.8,0.789]
[1720674660078,2.42305203,3097.9,3096.9,2.3753]
[1720674660289,1.35545465,3097.1,3096.9,2.1814]
[1720674660603,1.35545465,3097.0,3096.9,2.1814]
[1720674661004,1.69460195,3097.1,3096.8,0.789]
[1720674661214,1.35568796,3096.9,3096.8,0.789]
[1720674661518,1.35562004,3096.9,3096.8,0.789]
[1720674661815,1.35562004,3097.0,3096.8,0.789]
[1720674662176,1.35562004,3097.1,3096.8,0.789]
[1720674662629,1.35562004,3097.1,3096.1,1.897]
[1720674662779,1.35562004,3097.1,3096.2,0.4897]
[1720674662979,1.35562004,3097.0,3096.2,0.4897]
[1720674663200,1.35562004,3097.1,3096.1,1.897]
[1720674663402,1.35562004,3097.1,3096.2,2.4723]
[1720674663619,1.35562004,3097.1,3096.2,5.4723]
[1720674664017,1.35287106,3097.1,3096.3,0.55]
[1720674664331,1.35287106,3097.2,3096.3,3.55]
[1720674664541,1.35287106,3097.2,3096.4,0.60223]
[1720674665128,2.0293066,3097.7,3096.5,2.4562]
[1720674665129,1.35287106,3097.3,3096.5,2.4562]
[1720674665331,1.35287106,3097.4,3096.5,5.4562]
[1720674665643,1.35287106,3097.5,3096.6,2.4562]
[1720674666224,1.35287106,3097.5,3096.9,1.897]
[1720674666522,1.35287106,3097.8,3097.1,2.2616]
[1720674666709,1.35287106,3097.7,3097.1,2.2616]
[1720674666908,1.35287106,3097.8,3097.1,2.2616]
[1720674667801,1.35287106,3097.9,3097.1,2.2616]
[1720674668701,1.35287106,3098.0,3097.1,2.2616]
[1720674668897,1.35287106,3098.1,3097.2,2.60943]
[1720674669336,1.35287106,3098.0,3097.2,2.60943]
[1720674669506,1.35287106,3098.1,3097.2,2.60943]
[1720674670604,4.69103006,3098.2,3097.2,2.60943]
[1720674670847,4.69103006,3098.2,3097.3,0.260943]
[1720674670848,1.35287106,3098.1,3097.3,0.260943]
[1720674671017,1.35287106,3098.1,3097.4,2.4951]
[1720674671213,4.69103006,3098.2,3097.4,2.4951]
[1720674671730,1.35287106,3098.1,3097.4,2.4951]
[1720674673851,1.35287106,3098.0,3097.4,2.4951]
[1720674674206,1.35287106,3098.1,3097.4,2.4951]
[1720674674406,1.35287106,3098.0,3097.4,2.4951]
[1720674674600,1.68668696,3098.1,3097.4,2.4951]
[1720674674824,1.35287106,3098.0,3097.4,2.4951]
[1720674676258,1.35287106,3098.0,3097.0,7.4]
[1720674676558,1.35287106,3097.7,3097.1,2.3727]
[1720674677561,1.35287106,3097.6,3097.1,2.3727]
[1720674679253,1.35287106,3097.7,3097.1,2.3727]
[1720674679660,1.35287106,3097.6,3097.1,2.3727]
[1720674682034,1.68975954,3097.8,3097.1,2.3727]
[1720674682035,1.35287106,3097.8,3097.1,3.34997]
[1720674682234,1.35287106,3097.8,3097.1,0.97727]
[1720674682450,1.69108665,3097.9,3097.2,2.2578]
[1720674682632,1.69108665,3097.9,3097.5,0.79]
[1720674683161,1.69108665,3097.9,3097.6,2.385]
[1720674683869,1.35287106,3097.8,3097.6,2.385]
[1720674684626,1.69108665,3097.9,3097.6,2.385]
[1720674685249,1.35287106,3097.8,3097.6,2.385]
[1720674685872,1.69108665,3097.9,3097.6,2.385]
[1720674686237,1.35287106,3097.8,3097.6,2.385]
[1720674687259,1.35287106,3097.7,3096.9,2.312]
[1720674687464,1.35287106,3097.7,3097.1,2.312]
[1720674688283,1.35287106,3097.6,3097.1,2.312]
[1720674689084,1.35287106,3097.7,3097.1,2.312]
[1720674689389,1.35287106,3097.6,3097.1,2.312]
[1720674692265,1.35287106,3097.5,3097.1,2.312]
[1720674692671,1.69145556,3097.7,3097.1,2.312]
[1720674692672,1.35287106,3097.6,3097.1,2.312]
[1720674692852,1.35287106,3097.6,3097.2,2.71678]
[1720674693895,1.69145556,3097.7,3097.2,2.71678]
[1720674693896,1.35287106,3097.7,3097.2,2.71678]
[1720674694261,1.35287106,3097.6,3097.2,2.71678]
[1720674694475,1.35287106,3097.7,3097.2,2.71678]
[1720674695333,1.35287106,3097.8,3097.3,2.4435]
[1720674695515,2.79866499,3098.9,3097.7,2.3216]
[1720674695516,1.35287106,3098.1,3097.7,2.3216]
[1720674695717,1.35287106,3098.3,3097.8,2.8716]
[1720674696020,1.69231443,3098.4,3098.0,2.3216]
[1720674696021,1.35287106,3098.4,3098.0,2.3216]
[1720674697011,1.35287106,3098.5,3098.0,2.3216]
[1720674697525,1.35287106,3098.2,3098.0,2.3216]
[1720674698239,1.35287106,3098.3,3098.0,2.3216]
[1720674698400,1.35287106,3098.2,3098.0,2.3216]
[1720674699201,1.35287106,3098.3,3098.0,2.3216]
[1720674699402,1.35287106,3098.2,3098.0,2.3216]
[1720674701030,1.35287106,3098.1,3098.0,2.3216]
[1720674701253,1.65742023,3098.1,3097.6,2.3402]
[1720674701435,1.35441533,3097.9,3097.6,2.3402]
[1720674701861,1.35441533,3098.0,3097.6,2.3402]
[1720674702974,1.35441533,3098.1,3097.6,2.3402]
[1720674703124,1.35441533,3098.2,3097.6,2.3402]
[1720674704063,1.35441533,3098.3,3097.7,2.3402]
[1720674704247,1.35441533,3098.3,3097.9,2.3402]
[1720674704627,1.35441533,3098.4,3098.2,0.79]
[1720674705056,1.35441533,3098.3,3098.2,0.79]
[1720674705561,1.35441533,3098.4,3098.2,0.79]
[1720674705748,1.35441533,3098.3,3098.2,0.79]
[1720674707432,3.1449,3099.2,3098.2,3.1302]
[1720674707433,1.35441533,3098.4,3098.2,3.1302]
[1720674708838,1.35388762,3098.4,3098.2,3.1302]
[1720674710985,1.35388762,3098.3,3098.2,3.1302]
[1720674711162,1.69235953,3098.3,3098.2,0.79]
[1720674711358,1.86159548,3098.3,3098.0,0.79]
[1720674711559,1.35434748,3098.1,3098.0,0.79]
[1720674713393,1.35434748,3098.2,3098.0,0.79]
[1720674714391,1.35434748,3098.1,3098.0,0.79]
[1720674714554,1.69235953,3098.2,3098.0,0.79]
[1720674714761,1.35449198,3098.1,3098.0,0.79]
[1720674715088,4.72420334,3098.8,3098.0,0.79]
[1720674715089,2.3549,3098.8,3098.0,0.79]
[1720674715293,1.3544597,3098.1,3098.0,0.79]
[1720674718080,1.69307462,3098.1,3097.8,0.79]
[1720674718285,1.35444309,3098.0,3097.8,0.79]
[1720674719402,0.93443915,3098.0,3097.8,0.79]
[1720674720086,1.69306073,3098.1,3097.8,0.79]
[1720674720296,1.69306073,3098.1,3098.0,0.79]
[1720674721108,1.69292604,3098.2,3098.0,0.79]
[1720674721282,1.69292604,3098.3,3098.1,2.4978]
[1720674721483,1.69292604,3098.3,3098.2,0.79]
[1720674721711,1.69292604,3098.4,3098.2,0.79]
[1720674722469,1.69292604,3098.5,3098.2,0.79]
[1720674722769,1.69292604,3098.6,3098.4,0.79]
[1720674722969,1.69292604,3098.6,3098.5,0.79]
[1720674723220,1.69292604,3098.7,3098.5,3.212]
[1720674723398,1.69292604,3098.7,3098.6,0.79]
[1720674724006,1.69292604,3098.8,3098.6,0.79]
[1720674724779,1.69292604,3098.7,3098.6,0.79]
[1720674725174,1.69292604,3098.8,3098.6,0.79]
[1720674727817,2.3621,3099.4,3098.6,0.79]
[1720674728119,1.69261482,3098.8,3098.6,0.79]
[1720674730799,1.35399808,3098.8,3098.7,2.414]
[1720674731006,1.35399808,3098.9,3098.7,2.414]
[1720674731199,1.35399808,3098.9,3098.8,1.1104]
[1720674731404,1.35399808,3098.9,3098.8,0.79]
[1720674731840,1.35399808,3098.9,3098.7,2.414]
[1720674732041,1.35399808,3098.8,3098.7,2.414]
[1720674734544,1.35399808,3098.8,3098.6,0.79]
[1720674734877,1.35401572,3098.8,3098.6,0.79]
[1720674735386,1.65866926,3098.8,3098.4,2.4824]
[1720674735533,1.35401572,3098.6,3098.4,0.79]
[1720674735738,1.35401572,3098.5,3098.4,0.79]
[1720674735986,1.69251965,3098.6,3098.4,0.79]
[1720674737531,1.69251965,3098.5,3098.4,0.79]
[1720674737736,1.69251965,3098.5,3098.0,9.8062]
[1720674737973,1.69251965,3098.4,3098.2,0.79]
[1720674738274,1.69371055,3098.4,3098.2,0.79]
[1720674738470,2.36,3099.1,3098.2,0.79]
[1720674738679,1.35529903,3098.3,3098.2,0.79]
[1720674739237,1.69412379,3098.4,3098.2,0.79]
[1720674739749,1.35561066,3098.3,3098.2,0.79]
[1720674739954,1.35561066,3098.3,3098.2,1.10962]
[1720674740287,1.35579602,3098.4,3098.3,2.2685]
[1720674740832,1.35579602,3098.5,3098.3,2.2685]
[1720674741132,1.35579602,3098.5,3098.4,0.79]
[1720674741330,1.69412379,3098.6,3098.4,1.127812]
[1720674741331,1.69510492,3098.6,3098.4,1.127812]
[1720674741973,1.69510492,3098.5,3098.4,1.127812]
[1720674742566,1.35603954,3098.5,3098.4,1.127812]
[1720674743982,1.35603954,3098.5,3098.4,3.433012]
[1720674744182,1.69510492,3098.6,3098.4,3.433012]
[1720674744183,1.35603954,3098.6,3098.4,3.433012]
[1720674744336,1.35603954,3098.6,3098.5,0.3433012]
[1720674745054,1.35603954,3098.6,3098.5,2.4776]
[1720674745462,1.35603954,3098.8,3098.5,2.4776]
[1720674745667,1.35603954,3098.8,3098.7,0.79]
[1720674745867,1.35570099,3098.8,3098.7,3.213]
[1720674746988,1.69482907,3098.9,3098.7,3.213]
[1720674747151,1.69482907,3098.9,3098.7,0.79]
[1720674747353,3.0,3099.6,3098.7,0.79]
[1720674747354,1.69482907,3098.8,3098.7,0.79]
[1720674748290,2.3284,3099.4,3098.7,0.79]
[1720674748463,1.69445287,3098.8,3098.7,0.79]
[1720674748883,1.69447524,3098.8,3098.7,0.79]
[1720674750171,1.69447524,3098.9,3098.7,0.79]
[1720674750375,1.69447524,3098.8,3098.7,0.79]
[1720674751493,2.03334344,3099.1,3098.7,0.79]
[1720674751655,1.69428376,3098.9,3098.7,0.79]
[1720674752854,1.35536043,3098.8,3098.7,0.79]
[1720674753055,1.35536043,3098.8,3098.7,1.1113]
[1720674757169,0.33809714,3098.8,3098.7,1.1113]
[1720674757366,1.69345757,3098.8,3098.7,1.1113]
[1720674758717,0.33809714,3098.8,3098.7,1.1113]
[1720674759807,1.35536043,3098.9,3098.7,1.1113]
[1720674760116,1.35536043,3098.9,3098.8,0.35343]
[1720674760529,1.35536043,3099.0,3098.8,0.35343]
[1720674760732,1.35536043,3099.0,3098.9,0.79]
[1720674760906,1.69396458,3099.1,3098.9,0.79]
[1720674761099,1.35516593,3099.0,3098.9,0.79]
[1720674761601,1.69396458,3099.1,3098.9,0.79]
[1720674761838,1.35522104,3099.0,3098.9,0.79]
[1720674763037,1.35522104,3099.0,3098.9,3.2684]
[1720674763240,1.35522104,3099.1,3098.9,3.2684]
[1720674763426,1.35522104,3099.1,3099.0,2.4784]
[1720674763742,1.35522104,3099.4,3099.1,2.4784]
[1720674763917,1.35522104,3099.6,3099.3,2.4784]
[1720674764102,1.46773684,3099.7,3099.6,2.4784]
[1720674764959,0.1125158,3099.7,3099.6,2.4784]
[1720674765302,0.1125158,3099.7,3099.2,2.4784]
[1720674765650,1.46692283,3099.7,3099.6,0.79]
[1720674765835,0.1125158,3099.7,3099.6,0.79]
[1720674766207,1.46664714,3099.7,3099.6,0.79]
[1720674768847,0.1125158,3099.7,3099.6,0.79]
[1720674769449,1.4661969,3099.7,3099.6,0.79]
[1720674769944,0.1125158,3099.7,3099.6,3.2684]
[1720674770150,0.1125158,3099.7,3099.6,3.59524]
[1720674771825,0.1125158,3099.7,3099.6,2.80524]
[1720674772020,0.1125158,3099.7,3099.6,0.32684]
[1720674772221,1.4661969,3099.7,3099.6,0.79]
[1720674772627,0.1125158,3099.7,3099.6,0.79]
[1720674772955,1.4661969,3099.7,3099.6,0.79]
[1720674773147,0.1125158,3099.7,3099.6,0.79]
[1720674774572,0.1125158,3099.7,3099.6,1.34]
[1720674774737,0.1125158,3099.7,3099.6,4.25]
[1720674775080,0.1125158,3099.7,3099.6,7.25]
[1720674776635,0.1125158,3099.7,3099.6,8.479]
[1720674777926,0.1125158,3099.7,3099.6,7.929]
[1720674782627,0.1125158,3099.7,3099.6,8.479]
[1720674792480,0.1125158,3099.7,3099.6,6.003]
[1720674794102,0.1125158,3099.7,3099.6,5.453]
[1720674794274,0.1125158,3099.7,3099.6,2.453]
[1720674796619,0.1125158,3099.7,3099.6,1.275]
[1720674798705,0.14172965,3099.7,3099.6,1.275]
[1720674799227,0.1125158,3099.7,3099.6,1.275]
[1720674799600,0.14172965,3099.7,3099.6,1.275]
[1720674800516,0.1125158,3099.7,3099.6,1.275]
[1720674803329,0.1125158,3099.7,3099.6,3.768]
[1720674803495,0.1125158,3099.7,3099.6,7.318]
[1720674817637,1.35447013,3100.4,3099.6,7.318]
[1720674817836,1.35447013,3100.4,3100.3,0.841]
[1720674818203,1.38384911,3100.4,3100.3,0.841]
[1720674818512,1.35447013,3100.4,3100.3,0.841]
[1720674818724,1.38384911,3100.4,3100.3,0.841]
[1720674819313,0.02937898,3100.4,3100.3,0.841]
[1720674819931,1.38384911,3100.4,3100.3,0.841]
[1720674823422,1.35571553,3100.9,3100.4,2.3666]
[1720674823629,1.35571553,3100.9,3100.8,0.841]
[1720674823948,1.35571553,3100.9,3100.8,1.391]
[1720674824150,1.35571553,3101.0,3100.8,0.841]
[1720674824321,1.35571553,3101.0,3100.9,0.841]
[1720674824664,1.35571553,3101.1,3100.9,0.841]
[1720674824821,1.35571553,3101.1,3100.5,3.0]
[1720674825026,1.69498596,3101.2,3101.0,0.841]
[1720674825226,1.35513393,3101.1,3101.0,0.841]
[1720674826445,1.35513393,3101.2,3100.5,3.0]
[1720674826756,1.35513393,3101.2,3101.0,0.841]
[1720674826757,1.35513393,3101.1,3101.0,0.841]
[1720674829024,1.35402892,3101.1,3101.0,0.841]
[1720674829527,3.71792892,3101.1,3101.0,0.841]
[1720674830858,3.71792892,3101.1,3100.5,10.4]
[1720674831062,1.35402892,3101.0,3100.9,0.841]
[1720674831267,2.90494651,3101.1,3100.9,0.841]
[1720674833075,1.69229644,3101.0,3100.9,0.841]
[1720674833270,2.3639,3101.1,3100.9,0.841]
[1720674833436,1.69227419,3101.1,3100.9,0.841]
[1720674833768,1.69227419,3101.0,3100.9,0.841]
[1720674835743,1.69221413,3101.0,3100.9,0.841]
[1720674835944,4.22203554,3101.0,3100.9,0.841]
[1720674837658,1.69221413,3101.0,3100.9,0.841]
[1720674837855,1.69221413,3101.1,3100.9,0.841]
[1720674838062,1.69221413,3101.1,3101.0,0.841]
[1720674838572,1.69221413,3101.2,3101.0,0.841]
[1720674838757,1.35354997,3101.1,3100.5,9.8321]
[1720674839108,2.3606,3101.5,3101.1,0.841]
[1720674839382,2.3606,3101.5,3100.6,0.98321]
[1720674839383,1.6919023,3101.3,3100.6,0.98321]
[1720674839561,1.35349652,3101.1,3100.6,0.98321]
[1720674839761,1.35349652,3101.1,3101.0,0.841]
[1720674840147,1.6919023,3101.2,3101.0,0.841]
[1720674840362,2.3606,3101.1,3100.5,7.4]
[1720674840574,2.3606,3101.1,3101.0,0.841]
[1720674840774,3.34956666,3101.1,3101.0,0.841]
[1720674841298,1.69209864,3101.1,3101.0,0.841]
[1720674841463,1.35360426,3101.1,3101.0,0.841]
[1720674841789,1.35358523,3101.1,3101.0,0.841]
[1720674842284,1.69198154,3101.1,3101.0,0.841]
[1720674842647,1.69198154,3101.2,3101.0,0.841]